{"text_format":"1","workbook":"xlsx","n_sheets":4,"sheets":["Order Sheet","Order Summary","Loading List","Invoice"],"not_rendered":{"charts":0,"images":1,"macros":1,"external_links":0,"defined_names":7,"comments":0,"pivot_tables":0},"unopened":[],"bounds":{"document_bytes":16777216,"sheet_cells":100000,"rows_first":2000,"rows_last":500,"rows_between":2000,"halvings":0,"cell_chars":16384,"cell_head_chars":4096},"cells_cut":0,"cells_raw":0,"read":"whole","date_system":"1900"}

{"sheet":"Order Sheet","index":0,"n_rows":259,"n_cols":10,"rows_kept":259,"cut":false,"hidden":false,"merged":[[4,2,4,4],[4,7,4,9],[5,2,5,4],[5,6,5,9],[6,2,6,4],[6,6,6,9],[0,1,0,9],[1,1,1,4],[1,6,1,9],[2,2,2,4],[2,7,2,9],[3,2,3,4],[3,7,3,9],[12,2,12,4],[12,7,12,9],[13,2,13,4],[13,7,13,9],[14,1,14,4],[14,6,14,9],[7,1,7,9],[8,1,8,4],[8,5,14,5],[8,6,8,9],[9,2,9,4],[9,7,9,9],[10,2,10,4],[10,7,10,9],[11,2,11,4],[11,7,11,9],[37,6,37,9],[41,6,41,9],[45,6,45,9],[49,6,49,9],[53,1,53,4],[65,6,65,9],[15,1,15,9],[17,1,17,4],[17,6,17,9],[23,6,23,9],[27,6,27,9],[33,6,33,9],[105,1,105,4],[109,1,109,4],[118,1,118,4],[122,1,122,4],[127,1,127,4],[139,6,139,9],[70,1,70,4],[89,1,89,4],[89,6,89,9],[93,1,93,4],[97,1,97,4],[101,1,101,4],[166,6,166,7],[167,6,167,7],[168,6,168,7],[169,6,169,7],[170,6,170,7],[171,6,171,7],[161,1,161,4],[161,6,161,9],[162,6,162,7],[163,6,163,7],[164,6,164,7],[165,6,165,7],[178,6,178,7],[179,6,179,7],[180,6,180,7],[181,6,181,7],[182,6,182,7],[183,6,183,7],[172,6,172,7],[173,6,173,7],[174,6,174,7],[175,6,175,7],[176,6,176,7],[177,6,177,7],[190,6,190,7],[191,6,191,7],[192,6,192,7],[193,6,193,7],[194,6,194,7],[195,6,195,7],[184,6,184,7],[185,6,185,7],[186,6,186,7],[187,6,187,7],[188,6,188,7],[189,6,189,7],[202,6,202,7],[203,6,203,7],[204,6,204,7],[205,6,205,7],[206,6,206,7],[207,6,207,7],[196,6,196,7],[197,6,197,7],[198,6,198,7],[199,6,199,7],[200,6,200,7],[201,6,201,7],[213,6,213,7],[214,6,214,7],[215,6,215,7],[216,6,216,7],[217,6,217,7],[218,6,218,7],[208,6,208,7],[209,6,209,7],[210,1,210,4],[210,6,210,7],[211,6,211,7],[212,6,212,7],[224,1,224,4],[224,6,224,7],[225,1,225,2],[225,6,225,7],[226,1,226,2],[226,6,226,7],[219,6,219,7],[220,1,220,4],[220,6,220,7],[221,6,221,7],[222,6,222,7],[223,6,223,7],[230,1,230,2],[230,6,230,7],[233,1,233,4],[234,1,234,2],[235,1,235,2],[236,1,236,2],[227,1,227,2],[227,6,227,7],[228,1,228,2],[228,6,228,7],[229,1,229,2],[229,6,229,7],[243,1,243,2],[244,1,244,2],[245,1,245,2],[246,1,246,2],[247,1,247,2],[248,1,248,2],[237,1,237,2],[238,1,238,2],[239,1,239,2],[240,1,240,2],[241,1,241,2],[242,1,242,2],[255,1,255,2],[256,1,256,2],[257,1,257,2],[249,1,249,2],[250,1,250,2],[251,1,251,2],[252,1,252,2],[253,1,253,2],[254,1,254,2]]}
[]
[null,"Contact Information",null,null,null,null,"Pope's Contact"]
[null,"Company Name",null,null,null,null,"Name","Pope's Plant Farm "]
[null,"Contact Name",null,null,null,null,"Phone","(865) 856-8099"]
[null,"Phone",null,null,null,null,"Email","orders@popesplantfarm.com"]
[null,"Fax Number",null,null,null,null,"Special Notes"]
[null,"No. Of Pages Faxed",null,null,null,null,"New Air Plants Available!!"]
[]
[null,"Billing Address",null,null,null,null,"Shipping Address"]
[null,"Street"," ",null,null,null,"Street"," "]
[null,"City",null,null,null,null,"City"]
[null,"PO",null,null,null,null,"State"]
[null,"State",null,null,null,null,"Zip Code"]
[null,"Zip Code"]
[]
[null,"Items Available"]
[]
[null,"Pansy and Violas | 8-04 Pansy (8 Packs Per Flat) | $8.40 Flat | 5 Per Shelf | 40 Per Rack",null,null,null,null,"Pansy and Violas | 6.5\" Watering Can | $5.00 Each | 20 Per Shelf | 100 Per Rack"]
[null,"Variety","Color","QTY","Order",null,"Variety","Color","QTY","Order"]
[null,"Delta","Mix Watercolor ",10,null,null,"Viola Colormax","Berry Pie",86]
[null,"Grandio","Mix Clear Colors",86,null,null,"Viola Colormax","Citrus Mix",85]
[null,"Majestic Giant I I","Blue Mid Blotch",264,null,null,"Viola Colormax","Yellow Jump-up",45]
[null,"Majestic Giant I I","Marina Blotch",15,null,null,"Total Ordered",null,null,{"$f":"SUM(,J20,J21,J22)","v":0}]
[null,"Majestic Giant I I","Purple Clear",252,null,null,"Pansy and Violas | 10\" HB Cool Wave | $8.00 Each | 10 Per Shelf | 40 Per Rack"]
[null,"Majestic Giant I I","Red Blotch",176,null,null,"Variety","Color","QTY","Order"]
[null,"Majestic Giant I I","Rosalyn Blotch",80,null,null,"Cool Wave","Yellow Golden",80]
[null,"Majestic Giant I I","Rose Blotch",99,null,null,"Total Ordered",null,null,{"$f":"SUM(,J26)","v":0}]
[null,"Majestic Giant I I","Sherry Blotch",62,null,null,"Fall  | 5\" Cabbage and kale (8 pots/flat) | $12.00 Flat | 5 Per Shelf | 30 Per Rack"]
[null,"Majestic Giant I I","White Blotch",97,null,null,"Variety","Color","QTY","Order"]
[null,"Majestic Giant I I","Yellow Clear",11,null,null,"Glamour","Red-",19]
[null,"Majestic Giant II","Mix Blotch",421,null,null,"Nagoya","Red-",27]
[null,"Majestic Giant II","Yellow Blotch",309,null,null,"Redbor-",null,6]
[null,"Matrix","Blue Blotch",327,null,null,"Total Ordered",null,null,{"$f":"SUM(,J30,J31,J32)","v":0}]
[null,"Matrix","Blue Light",69,null,null,"Fall  | 6\" Ornamental Pepper (6 pots/flat) | $16.50 Flat | 4 Per Shelf | 20 Per Rack"]
[null,"Matrix","Blue True",167,null,null,"Variety","Color","QTY","Order"]
[null,"Matrix","Clear Mix",707,null,null,"Ornamental Pepper","Medusa",60]
[null,"Matrix","Lemon",20,null,null,"Total Ordered",null,null,{"$f":"SUM(,J36)","v":0}]
[null,"Matrix","Morpheus ",787,null,null,"Annuals | 4\" Accent (10 Pots/Flat) | $15.00 Flat | 7 Per Shelf | 56 Per Rack"]
[null,"Matrix","Ocean",156,null,null,"Variety","Color","QTY","Order"]
[null,"Matrix","Orange ",30,null,null,"Spider Plant-",null,45]
[null,"Matrix","Primrose",91,null,null,"Total Ordered",null,null,{"$f":"SUM(,J40)","v":0}]
[null,"Matrix","Purple",100,null,null,"Annuals | 6.5\" Premium Annual (6 Pots/Flat) | $22.50 Flat | 4 Per Shelf | 20 Per Rack"]
[null,"Matrix","Purple Blotch",154,null,null,"Variety","Color","QTY","Order"]
[null,"Matrix","Red Wing",69,null,null,"Yucca","Color Guard",16]
[null,"Matrix","Rose",57,null,null,"Total Ordered",null,null,{"$f":"SUM(,J44)","v":0}]
[null,"Matrix","Rose Wing",133,null,null,"Tropicals | 6\" Fern (6 Pots/Flat) | $15.00 Flat | 4 Per Shelf | 24 Per Rack"]
[null,"Matrix","Scarlet",66,null,null,"Variety","Color","QTY","Order"]
[null,"Matrix","White",116,null,null,"Fern","Kimberly Queen",40]
[null,"Matrix","Yellow",471,null,null,"Total Ordered",null,null,{"$f":"SUM(,J48)","v":0}]
[null,"Panola XP","Purple Face",39,null,null,"Perennial | 1g Perennial (6 Pots/Flat) | $22.50 Flat | 4 Per Shelf | 20 Per Rack"]
[null,"Panola XP","Rose Picotee ",22,null,null,"Variety","Color","QTY","Order"]
[null,"Panola XP","White",24,null,null,"Daylily","Black Arrowhead (No Color)",10]
[null,"Total Ordered",null,null,{"$f":"SUM(,E20,E21,E22,E23,E24,E25,E26,E27,E28,E29,E30,E31,E32,E33,E34,E35,E36,E37,E38,E39,E40,E41,E42,E43,E44,E45,E46,E47,E48,E49,E50,E51,E52)","v":0},null,"Daylily","Dress Pink (No Color)",20]
[null,"Pansy and Violas | 8-04 Viola (8 Packs Per Flat) | $8.40 Flat | 5 Per Shelf | 40 Per Rack",null,null,null,null,"Daylily","Fire & Fog (No Color)",10]
[null,"Variety","Color","QTY","Order",null,"Daylily","Happy Returns (No Color)",60]
[null,"Sorbet XP","Antique Shade",113,null,null,"Daylily","Longfield Butterfly (No Color)",20]
[null,"Sorbet XP","Blotch Mix",142,null,null,"Daylily","Longfield Glory (No Color)",20]
[null,"Sorbet XP","Blue Blotch",155,null,null,"Daylily","Longfield Pearl (No Color)",10]
[null,"Sorbet XP","Marina",183,null,null,"Daylily","Louise Manelis (No Color)",60]
[null,"Sorbet XP","Morpho",139,null,null,"Daylily","Stella De Oro",60]
[null,"Sorbet XP","Orange",95,null,null,"Heucherella","Goldstrike",10]
[null,"Sorbet XP","Orange Jump-Up",71,null,null,"Heucherella","Sunrise Falls",30]
[null,"Sorbet XP","Purple",156,null,null,"Lavender","Anouk Supreme",4]
[null,"Sorbet XP","Raspberry",42,null,null,"Rosemary","Arp",18]
[null,"Sorbet XP","True Blue",148,null,null,"Total Ordered",null,null,{"$f":"SUM(,J52,J53,J54,J55,J56,J57,J58,J59,J60,J61,J62,J63,J64)","v":0}]
[null,"Sorbet XP","White",190,null,null,"Shrubs | 2g Shrub | $12.50 Each | 10 Per Shelf | 30 Per Rack"]
[null,"Sorbet XP","White Jump Up",138,null,null,"Variety","Color","QTY","Order"]
[null,"Sorbet XP","Yellow",71,null,null,"Buddleia","Miss PearlPW",30]
[null,"Sorbet XP","Yellow Jump Up",205,null,null,"Hydrangea","BoboPW",170]
[null,"Total Ordered",null,null,{"$f":"SUM(,E56,E57,E58,E59,E60,E61,E62,E63,E64,E65,E66,E67,E68,E69)","v":0},null,"Hydrangea","FirelightPW",30]
[null,"Pansy and Violas | 5.5\" Pansy (8 Pots per Flat) | $12.00 Flat | 5 Per Shelf | 30 Per Rack",null,null,null,null,"Hydrangea","Little LambPW",50]
[null,"Variety","Color","QTY","Order",null,"Hydrangea","Little Quick FirePW",70]
[null,"Magestic Giant II","Marina Blotch",16,null,null,"Hydrangea","Pinky WinkyPW",60]
[null,"Magestic Giant II","Mix Blotch",11,null,null,"Rosa Oso Easy","Double RedPW",100]
[null,"Magestic Giant II","Rosalyn Blotch",5,null,null,"Rosa Oso Easy","Hot PaprikiaPW",50]
[null,"Magestic Giant II","Sherry Blotch",4,null,null,"Rosa Oso Easy","Italian IcePW",50]
[null,"Magestic Giant II","Yellow Blotch",6,null,null,"Rosa Oso Easy","Lemon Zest PW",100]
[null,"Matrix","Blue Blotch",10,null,null,"Rosa Oso Easy","Urban LegendPW",100]
[null,"Matrix","Blue Mix",24,null,null,"Rosa","At LastPW",100]
[null,"Matrix","Blue True",17,null,null,"Rose Hybrid Tea","Assorted",200]
[null,"Matrix","Ocean",8,null,null,"Rose","Drift Pink",19]
[null,"Matrix","Orange",6,null,null,"Spirea","Candy CornPW",70]
[null,"Matrix","Purple Blotch",7,null,null,"Viburnum","Emerald EnvyPW",20]
[null,"Total Ordered",null,null,{"$f":"SUM(,E73,E74,E75,E76,E77,E78,E79,E80,E81,E82,E83)","v":0},null,"Weigelia","Spilled WinePW",100]
[null,null,null,null,null,null,"Weigelia","Wine & RosesPW",50]
[null,null,null,null,null,null,"Total Ordered",null,null,{"$f":"SUM(,J68,J69,J70,J71,J72,J73,J74,J75,J76,J77,J78,J79,J80,J81,J82,J83,J84,J85)","v":0}]
[]
[]
[]
[null,"Shrubs | 3g Knockout Rose | $14.00 Each | 10 Per Shelf | 30 Per Rack",null,null,null,null,"Succulents | 2\" Succulent (28 Pots/Flat) | $42.00 Flat | 5 Per Shelf | 40 Per Rack"]
[null,"Variety","Color","QTY","Order",null,"Variety","Color","QTY","Order"]
[null,"Knockout Rose","Sunny ",50,null,null,"Echeveria","Black Knight",58]
[null,"Total Ordered",null,null,{"$f":"SUM(,E92)","v":0},null,"Echeveria","Black Prince",54]
[null,"Shrubs | 7g Arborvitae | $40.00 Each | 3 Per Shelf | 3 Per Rack",null,null,null,null,"Echeveria","Blue",17]
[null,"Variety","Color","QTY","Order",null,"Echeveria","Branco",14]
[null,"Emerald Green","Green",500,null,null,"Echeveria","Canadian",31]
[null,"Total Ordered",null,null,{"$f":"SUM(,E96)","v":0},null,"Echeveria","Dick's Pink",19]
[null,"Air Plants | Air Plant Small  | $1.00 Each | 200 Per Shelf | 1600 Per Rack",null,null,null,null,"Echeveria","Elegans",115]
[null,"Variety","Color","QTY","Order",null,"Echeveria","Frosty",17]
[null,"Assorted Air Plants","Order in qty of 10 (10=10 plants)",940,null,null,"Echeveria","Giant Blue",24]
[null,"Total Ordered",null,null,{"$f":"SUM(,E100)","v":0},null,"Echeveria","Green Gilva",113]
[null,"Air Plants | Air Plant Medium | $2.00 Each | 160 Per Shelf | 1280 Per Rack",null,null,null,null,"Echeveria","Grey Red",115]
[null,"Variety","Color","QTY","Order",null,"Echeveria","Hagaii Tolimanensis",73]
[null,"Assorted Air Plants","Order in qty of 8 (8=8 plants)",944,null,null,"Echeveria","Lila Cina",120]
[null,"Total Ordered",null,null,{"$f":"SUM(,E104)","v":0},null,"Echeveria","Lola",28]
[null,"Air Plants | Air Plant Large | $3.00 Each | 120 Per Shelf | 960 Per Rack",null,null,null,null,"Echeveria","Parva",58]
[null,"Variety","Color","QTY","Order",null,"Echeveria","Perle Von Nurnberg",179]
[null,"Assorted Air Plants","Order in qty of 4 (4=4 plants)",752,null,null,"Echeveria","Pulidonis",168]
[null,"Total Ordered",null,null,{"$f":"SUM(,E108)","v":0},null,"Echeveria","Red Prince",18]
[null,"Air Plants | Air Plant Extra Large | $4.00 Each | 100 Per Shelf | 800 Per Rack",null,null,null,null,"Echeveria","Red Sky",19]
[null,"Variety","Color","QTY","Order",null,"Echeveria","Rosea",43]
[null,"Assorted Air Plants","Assorted (Order any Quantity)",340,null,null,"Echeveria","Setosa",254]
[null,"Tillandsia","Capitata Peach",198,null,null,"Echeveria","Topsy Turvey",61]
[null,"Tillandsia","Fasciculata Tricolor",248,null,null,"Echeveria","Yvonii",20]
[null,"Tillandsia","Harrisii",198,null,null,"Euphorbia","Firesticks",10]
[null,"Tillandsia","Juncea",200,null,null,"Gasteria","Warty",10]
[null,"Tillandsia","Juncifolia",300,null,null,"Haworthia","Assorted",40]
[null,"Total Ordered",null,null,{"$f":"SUM(,E112,E113,E114,E115,E116,E117)","v":0},null,"Haworthia","Big Band",25]
[null,"Air Plants | Air Plant Xerographica | $8.00 Each | 100 Per Shelf | 800 Per Rack",null,null,null,null,"Haworthia","Limifolia",18]
[null,"Variety","Color","QTY","Order",null,"Haworthia","Retusa",61]
[null,"Xerographica","4.5\"x4.5\"",59,null,null,"Haworthia","Venosa",16]
[null,"Total Ordered",null,null,{"$f":"SUM(,E121)","v":0},null,"Kalanchoe","Chocolate Soldier",12]
[null,"Succulents | Succulent Plug Tray (50 Plugs/Flat) | $50.00 Flat | 5 Per Shelf | 40 Per Rack",null,null,null,null,"Kalanchoe","Paddle Plant",32]
[null,"Variety","Color","QTY","Order",null,"Kalanchoe","Tomentosa",28]
[null,"Echeveria","Assorted",50,null,null,"Pachyphytum","Compactum",18]
[null,"Succulent","Assorted",50,null,null,"Pachyphytum","Hookeri",13]
[null,"Total Ordered",null,null,{"$f":"SUM(,E125,E126)","v":0},null,"Sedum","Angelina",6]
[null,"Succulents | 2\" Succulent (28 Pots/Flat) | $42.00 Flat | 5 Per Shelf | 40 Per Rack",null,null,null,null,"Sedum","Coral Reef",11]
[null,"Variety","Color","QTY","Order",null,"Sedum","Dasyphylum Major",12]
[null,"Aeonium","Zwarktop",45,null,null,"Sedum","Gold Moss",16]
[null,"Aloe","Aristata",16,null,null,"Sedum","John Creech",4]
[null,"Aptenia","Patsy",50,null,null,"Sedum","Lineare Variegated",50]
[null,"Assorted",null,100,null,null,"Sedum","Little Missy",7]
[null,"Cactus in Clay Pots","Assorted ",13,null,null,"Sedum","Ogon",9]
[null,"Cactus","Peanut",57,null,null,"Sedum","Silver",20]
[null,"Cactus","Thimble",27,null,null,"Sempervivum","Assorted Hens and Chicks",20]
[null,"Crassula","Baby Jade",118,null,null,"Senecio","Blue Chalksticks",9]
[null,"Crassula","Commutata ",7,null,null,"Senecio","Crassissimus",23]
[null,"Crassula","Falcata",35,null,null,"Total Ordered",null,null,{"$f":"SUM(,E130,E131,E132,E133,E134,E135,E136,E137,E138,E139,E140,E141,E142,E143,E144,E145,E146,E147,E148,E149,E150,E151,E152,E153,E154,E155,E156,E157,E158,E159,J92,J93,J94,J95,J96,J97,J98,J99,J100,J101,J102,J103,J104,J105,J106,J107,J108,J109,J110,J111,J112,J113,J114,J115,J116,J117,J118,J119,J120,J121,J122,J123,J124,J125,J126,J127,J128,J129,J130,J131,J132,J133,J134,J135,J136,J137,J138)","v":0}]
[null,"Crassula","Hobbit",249,null,null,"Succulents | 3.5\" Succulent (6 Pots/Flat) | $15.00 Flat | 16 Per Shelf | 128 Per Rack"]
[null,"Crassula","Jade",128,null,null,"Variety","Color","QTY","Order"]
[null,"Crassula","Mini Pine Tree",17,null,null,"Aeonium","Kiwi",100]
[null,"Crassula","Perforata Variegated",31,null,null,"Aloe","Hybrid Mini",168]
[null,"Crassula","Sunset",133,null,null,"Aloe","Tiger Tooth",35]
[null,"Crassula","Tenelli",19,null,null,"Aptenia","Patsy",43]
[null,"Crassula","Wavey Jade",147,null,null,"Assorted",null,200]
[null,"Echeveria ","Agavoides",170,null,null,"Crassula","Baby Jade",200]
[null,"Echeveria ","Blue Bird",19,null,null,"Crassula","Hobbit",200]
[null,"Echeveria ","Blue Prince",104,null,null,"Crassula","Jade",468]
[null,"Echeveria ","Ebony",88,null,null,"Crassula","Springtime",60]
[null,"Echeveria ","Garotto",11,null,null,"Crassula","Sunset Jade",60]
[null,"Echeveria ","Marrom",13,null,null,"Echeveria ","Agavoides",120]
[null,"Echeveria ","Purple Pearl",18,null,null,"Echeveria ","Peacockii",50]
[null,"Echeveria ","Shaviana",73,null,null,"Echeveria ","Purpusorum",80]
[null,"Echeveria ","Subsessilis Blue",31,null,null,"Echeveria","Big Blue",70]
[null,"Echeveria","Afines",15,null,null,"Echeveria","Black Knight",300]
[null,"Echeveria","Arrow Nodulosa",6,null,null,"Echeveria","Black Prince",70]
[null,"Echeveria","Arrow Setosa",17,null,null,"Echeveria","Blue Prince",80]
[null,"Echeveria","Big Blue",17,null,null,"Echeveria","Canadian",75]
[]
[]
[null,"Succulents | 3.5\" Succulent (6 Pots/Flat) | $15.00 Flat | 16 Per Shelf | 128 Per Rack",null,null,null,null,"Succulents | Succulent Combo | See Below for Price and Quantities"]
[null,"Variety","Color","QTY","Order",null,"Variety",null,"QTY","Order"]
[null,"Echeveria","Ebony",200,null,null,"*New* Barcelona Round 2.25\"x2.25\" ($4.50 Ea. 16/S 128/R)",null,85]
[null,"Echeveria","Elegans",102,null,null,"*New* Barcelons Square 4\"x4\" ($10.00 Ea. 40/S 320/R)",null,95]
[null,"Echeveria","Garotto",40,null,null,"*New* Bicolor Nidos Hanging Tall 4.25\"x6.75\" ($12.50 Ea. 24/S 192/R)",null,55]
[null,"Echeveria","Giant Blue",30,null,null,"*New* Mountain Meadow Square 4.5\" ($10.00 Ea. 40/S 320/R)",null,77]
[null,"Echeveria","Green Gilva",100,null,null,"*New* Mountain Meadow Square 6.5\" ($15.00 Ea. 24/S 144/R)",null,72]
[null,"Echeveria","Grey Red",200,null,null,"*Wine Bottle Planter* ($17.00 Ea. 30/S 240/R)",null,182]
[null,"Echeveria","Hagaii Tolimanensis",44,null,null,"10\" Combo ($12.50 Ea. 10/S 40/R)",null,100]
[null,"Echeveria","Lila Cina",48,null,null,"10\" Glazed Ceramic Strawberry Jar ($35.00 Ea. 10/S 40/R)",null,196]
[null,"Echeveria","Marrom",100,null,null,"11.45\" Caldera Volcanic Rock Double Planter ($13.30 Ea. 20/S 120/R)",null,24]
[null,"Echeveria","Nodulosa",130,null,null,"12\" Corinthian Bowl ($28.00 Ea. 8/S 48/R)",null,58]
[null,"Echeveria","Parva",120,null,null,"14\" x 14\" Vertical Wall Planter ($22.00 Ea. 10/S 60/R)",null,71]
[null,"Echeveria","Perle Von Nurnberg",220,null,null,"14\" x 22\" Vertical Wall Planter ($36.00 Ea. 6/S 36/R)",null,11]
[null,"Echeveria","Pulidonis",320,null,null,"18\" Wooden Planter ($18.00 Ea. 11/S 66/R)",null,72]
[null,"Echeveria","Setosa",280,null,null,"4\" Clay Eggnog Succulent Combo ($5.00 Ea. 40/S 320/R)",null,47]
[null,"Echeveria","Shaviana",80,null,null,"4\" Clay Succulent Combo 8ct. Tray ($40.00 Ea. 5/S 40/R)",null,100]
[null,"Echeveria","Topsy Turvey",170,null,null,"4.5\" Cement with lines  ($8.50 Ea. 40/S 320/R)",null,195]
[null,"Echeveria","Yvonii",95,null,null,"6\" Clay Succulent Combo 6ct. Tray ($42.00 Ea. 4/S 24/R)",null,100]
[null,"Graptopetalum","Superbum Pentandrum",40,null,null,"7.65\" Caldera Volcanic Rock Planter ($10.00 Ea. 28/S 168/R)",null,42]
[null,"Graptosedum","Vera Higgins",150,null,null,"8\" Clay Eggnog Succulent Combo ($10.00 Ea. 20/S 100/R)",null,29]
[null,"Haworthia ","Super Faciata",80,null,null,"8\" Clay Succulent Combo ($10.00 Ea. 20/S 100/R)",null,100]
[null,"Haworthia","Assorted",70,null,null,"8\" Giotto Planter ($10.00 Ea. 20/S 100/R)",null,70]
[null,"Haworthia","Gasworthia",30,null,null,"8\" Woodland HB Succulent Combo ($12.50 Ea. 12/S 60/R)",null,147]
[null,"Haworthia","Herbacea",125,null,null,"8\"Coco HB Succulent Combo ($12.50 Ea. 12/S 60/R)",null,131]
[null,"Haworthia","Limifolia",140,null,null,"8.5\" Abigail Planter ($10.00 Ea. 18/S 108/R)",null,79]
[null,"Kalanchoe","Chocolate Soldier",80,null,null,"9\" Wooden Planter ($12.50 Ea. 22/S 132/R)",null,27]
[null,"Kalanchoe","Paddle Plant",40,null,null,"Birch Bark Planter Cement Oval 7\"x4\"x4\" ($15.00 Ea. 16/S 96/R)",null,156]
[null,"Pachyphytum","Compactum",120,null,null,"Birch Bark Planter Cement Rectangle 8.25\"x5\" ($18.00 Ea. 10/S 60/R)",null,131]
[null,"Pachyphytum","Hookeri",50,null,null,"Birch Bark Planter Cement Round 7\"x6.25\" ($22.00 Ea. 20/S 120/R)",null,116]
[null,"Sedum","Angelina",50,null,null,"Birch Bark Planter Cement Square 4.25\"x4.25\" ($13.30 Ea. 18/S 108/R)",null,225]
[null,"Sedum","Coral Carpet",30,null,null,"Cement Animal Large Bird ($15.00 Ea. 18/S 108/R)",null,117]
[null,"Sedum","Coral Reef",110,null,null,"Cement Animal Large Frog ($15.00 Ea. 18/S 108/R)",null,138]
[null,"Sedum","Dasyphylum Major",180,null,null,"Cement Animal Large Hedgehog ($15.00 Ea. 18/S 108/R)",null,151]
[null,"Sedum","Gold Moss",100,null,null,"Cement Animal Large Rabbit ($15.00 Ea. 18/S 108/R)",null,143]
[null,"Sedum","John Creech",120,null,null,"Cement Animal Large Snail ($15.00 Ea. 18/S 108/R)",null,104]
[null,"Sedum","Lemon Ball",25,null,null,"Cement Animal Large Turtle ($15.00 Ea. 18/S 108/R)",null,140]
[null,"Sedum","Little Missy",50,null,null,"Cement Animal Small Bird ($9.00 Ea. 24/S 144/R)",null,221]
[null,"Sedum","Sexangulare",30,null,null,"Cement Animal Small Frog ($9.00 Ea. 24/S 144/R)",null,180]
[null,"Sedum","Silver",100,null,null,"Cement Animal Small Hedgehog ($9.00 Ea. 24/S 144/R)",null,245]
[null,"Sedum","Tricolor",115,null,null,"Cement Animal Small Rabbit ($9.00 Ea. 24/S 144/R)",null,242]
[null,"Sempervivum","Assorted",75,null,null,"Cement Animal Small Snail ($9.00 Ea. 24/S 144/R)",null,164]
[null,"Sempervivum","Cobweb Buttons",18,null,null,"Cement Animal Small Turtle ($9.00 Ea. 24/S 144/R)",null,187]
[null,"Sempervivum","Jade Rose",18,null,null,"Cement Moss Tri Pot Large 8\"x5.5\" ($22.00 Ea. 24/S 144/R)",null,61]
[null,"Sempervivum","Red Heart",20,null,null,"Cement Moss Tri Pot Medium 6\"x4.75\"x3.75\" ($13.30 Ea. 30/S 180/R)",null,77]
[null,"Senecio","Blue Chalksticks",60,null,null,"Cement Moss Weathered Cup Small 7\"x4\" ($13.30 Ea. 36/S 216/R)",null,75]
[null,"Senecio","Crassisimus",16,null,null,"Cement Oval Distressed 8\"x3.5\" ($15.00 Ea. 24/S 144/R)",null,93]
[null,"Senecio","Fishhook",12,null,null,"Cement Round Distressed 10\"x4\" ($33.00 Ea. 10/S 60/R)",null,18]
[null,"Total Ordered",null,null,{"$f":"SUM(,J142,J143,J144,J145,J146,J147,J148,J149,J150,J151,J152,J153,J154,J155,J156,J157,J158,J159,E164,E165,E166,E167,E168,E169,E170,E171,E172,E173,E174,E175,E176,E177,E178,E179,E180,E181,E182,E183,E184,E185,E186,E187,E188,E189,E190,E191,E192,E193,E194,E195,E196,E197,E198,E199,E200,E201,E202,E203,E204,E205,E206,E207,E208,E209)","v":0},null,"Cement Round Distressed 2.5\"x2.5\" Qty of 6 ($27.00 Ea. 96/S 576/R)",null,66]
[null,"Succulents | 6\" Succulent (6 Pots/Flat) | $24.00 Flat | 4 Per Shelf | 20 Per Rack",null,null,null,null,"Cement Round Distressed 4.5\"x3.5\" ($12.00 Ea. 48/S 288/R)",null,153]
[null,"Variety","Color","QTY","Order",null,"Cement Round Distressed 5\"x3.5\" ($12.00 Ea. 48/S 288/R)",null,74]
[null,"Aloe ","Vera (Medicinal)",205,null,null,"Cement Round Distressed 6.25\"x4.25\" ($16.00 Ea. 24/S 144/R)",null,84]
[null,"Aloe","Blue Elf",73,null,null,"Cement Seashell Medium 9\"x7\"x6.5\" ($22.00 Ea. 36/S 216/R)",null,55]
[null,"Aloe","Hedgehog",31,null,null,"Cement Seashell Small 6.5\"x5\"x4.25\" ($13.30 Ea. 18/S 108/R)",null,74]
[null,"Assorted",null,50,null,null,"Cement Square Distressed 6.25\"x6.25\" ($18.00 Ea. 24/S 144/R)",null,44]
[null,"Echeveria","Aeonium Pinwheel",33,null,null,"Driftwood Oval 2 Tier Cement 11\"x7\" ($27.00 Ea. 18/S 108/R)",null,106]
[null,"Echeveria","Big Blue",112,null,null,"Driftwood Oval Cement 6\"x4\" ($9.50 Ea. 24/S 144/R)",null,218]
[null,"Echeveria","Setosa",44,null,null,"Driftwood Round Cement 5.5\"x2.75\" ($9.50 Ea. 24/S 144/R)",null,354]
[null,"Total Ordered",null,null,{"$f":"SUM(,E213,E214,E215,E216,E217,E218,E219)","v":0},null,"Log Planter Cement Long 20\"x6\" ($37.00 Ea. 8/S 48/R)",null,80]
[null,"Succulents | 10\" HB Succulent | $12.50 Each | 10 Per Shelf | 40 Per Rack",null,null,null,null,"Log Planter Cement Medium 14.5\"x5.5\" ($24.00 Ea. 12/S 72/R)",null,66]
[null,"Variety","Color","QTY","Order",null,"Log Planter Cement Small 9.25\"x3\" ($15.00 Ea. 24/S 144/R)",null,76]
[null,"Senecio","Fish Hooks",200,null,null,"Log Planter Cement Wide 15\"x9\" ($37.00 Ea. 8/S 48/R)",null,46]
[null,"Total Ordered",null,null,{"$f":"SUM(,E223)","v":0},null,"Rustic Combo #1 Turtle ($13.30 Ea. 15/S 120/R)",null,31]
[null,"Succulents | Succulent Combo | See Below for Price and Quantities",null,null,null,null,"Rustic Combo #3 Turtle ($21.00 Ea. 11/S 88/R)",null,26]
[null,"Variety",null,"QTY","Order",null,"Rustic Combo #6 Turtle ($35.00 Ea. 4/S 20/R)",null,13]
[null,"*Cactus Combo 4\" Clay ($7.00 Ea. 40/S 320/R)",null,90,null,null,"Rustic Combo #9 Turtle ($80.00 Ea. 3/S 9/R)",null,34]
[null,"*Cactus Combo 5\" Clay Squat ($7.00 Ea. 22/S 176/R)",null,56,null,null,"Rustic Combo Hen Large ($33.00 Ea. 8/S 40/R)",null,20]
[null,"*Cactus Combo 9\" Wooden Planter ($12.50 Ea. 22/S 132/R)",null,115,null,null,"Rustic Combo Laying Cat ($40.00 Ea. 7/S 42/R)",null,6]
[null,"*Cactus Mono 4\" Clay Eggnog Pot ($5.00 Ea. 40/S 320/R)",null,46,null,null,"Rustic Combo Mini Chata ($13.30 Ea. 12/S 72/R)",null,113]
[null,"*New* Barcelona Rectangle 5.5\"x3\"x3\" ($10.75 Ea. 40/S 320/R)",null,123,null,null,"Rustic Combo Oval Owl ($39.00 Ea. 12/S 48/R)",null,15]
[]
[]
[null,"Succulents | Succulent Combo | See Below for Price and Quantities"]
[null,"Variety",null,"QTY","Order"]
[null,"Rustic Combo Pig Large Standing ($80.00 Ea. 4/S 12/R)",null,27]
[null,"Rustic Combo Rabbit Large ($27.00 Ea. 9/S 54/R)",null,36]
[null,"Rustic Combo Rabbit Small ($13.30 Ea. 18/S 144/R)",null,19]
[null,"Rustic Combo Small Burro ($54.00 Ea. 7/S 28/R)",null,5]
[null,"Rustic Combo Small Cowboy Boot ($40.00 Ea. 8/S 32/R)",null,11]
[null,"Rustic Combo Small Strawberry ($50.00 Ea. 5/S 20/R)",null,12]
[null,"Rustic Combo Small Twist ($33.00 Ea. 10/S 30/R)",null,32]
[null,"Rustic Combo Standing Rooster Medium ($33.00 Ea. 11/S 44/R)",null,8]
[null,"Rustic Combo Turkey Large ($34.00 Ea. 6/S 24/R)",null,8]
[null,"Rustic Small Fish (Curved Flat Top) ($33.00 Ea. 12/S 72/R)",null,12]
[null,"Talavera Combo Boot Large ($57.00 Ea. 12/S 48/R)",null,8]
[null,"Talavera Combo Boot Small ($16.75 Ea. 35/S 210/R)",null,8]
[null,"Talavera Combo Bubble Square Medium ($27.00 Ea. 12/S 72/R)",null,13]
[null,"Talavera Combo Italian Large ($33.00 Ea. 12/S 60/R)",null,4]
[null,"Talavera Combo Italian Medium ($27.00 Ea. 15/S 90/R)",null,12]
[null,"Talavera Combo Italian Small ($17.00 Ea. 24/S 192/R)",null,11]
[null,"Talavera Combo Strawberry Small ($33.00 Ea. 10/S 80/R)",null,3]
[null,"Talavera Combo Traditional Mini ($21.00 Ea. 27/S 216/R)",null,11]
[null,"Talavera Combo Traditional Small ($27.00 Ea. 24/S 144/R)",null,8]
[null,"Talavera Combo Turtle Medium ($27.50 Ea. 12/S 96/R)",null,6]
[null,"TC Log Bowl 7.5\" ($15.00 Ea. 12/S 72/R)",null,153]
[null,"Vintage Tin 4.5\" ($8.50 Ea. 40/S 240/R)",null,144]
[null,"Vintage Tin 6.5\" ($13.30 Ea. 24/S 96/R)",null,99]
[null,"Total Ordered",null,null,{"$f":"SUM(,E227,E228,E229,E230,E231,J164,J165,J166,J167,J168,J169,J170,J171,J172,J173,J174,J175,J176,J177,J178,J179,J180,J181,J182,J183,J184,J185,J186,J187,J188,J189,J190,J191,J192,J193,J194,J195,J196,J197,J198,J199,J200,J201,J202,J203,J204,J205,J206,J207,J208,J209,J210,J211,J212,J213,J214,J215,J216,J217,J218,J219,J220,J221,J222,J223,J224,J225,J226,J227,J228,J229,J230,J231,E236,E237,E238,E239,E240,E241,E242,E243,E244,E245,E246,E247,E248,E249,E250,E251,E252,E253,E254,E255,E256,E257,E258)","v":0}]

{"sheet":"Order Summary","index":1,"n_rows":13,"n_cols":11,"rows_kept":13,"cut":false,"hidden":false,"merged":[]}
[]
[null,"Order Summary"]
[null,"P.O. Box 187   Greenback, TN 37742"]
[null,"Tel : (865) 856-8099, Fax : (865) 856-8094, Email : orders@popesplantfarm.com"]
[null,"Website : www.popesplantfarm.com"]
[]
[null,"Placed By","Driver_____________","Deliver To"]
[]
[null,null,null," "]
[null,"Order Date"]
[]
[]
[null,"Category","Variety","Color","Container",null,"Shelfs","Racks","QTY","Unit Price","Amount "]

{"sheet":"Loading List","index":2,"n_rows":13,"n_cols":5,"rows_kept":13,"cut":false,"hidden":false,"merged":[]}
[]
[null,"Loading List"]
[null,"6814 Hwy 411 S. Greenback, TN 37742"]
[null,"Tel : (865) 856-8099, Fax : (865) 856-8094, Email : orders@popesplantfarm.com"]
[null,"Website : www.popesplantfarm.com"]
[]
[null,"Placed By","Driver____________","Deliver To"]
[]
[null,null,null," "]
[null,"Order Date"]
[]
[]
[null,"Container","Variety","Color","QTY"]

{"sheet":"Invoice","index":3,"n_rows":13,"n_cols":7,"rows_kept":13,"cut":false,"hidden":false,"merged":[]}
[]
[null,"Invoice"]
[null,"P.O. Box 187   Greenback, TN 37742"]
[null,"Tel : (865) 856-8099, Fax : (865) 856-8094, Email : orders@popesplantfarm.com"]
[null,"Website : www.popesplantfarm.com"]
[]
[null,"Placed By",null,"Deliver To",null,"Invoice No."]
[null,null,null,null,null,"SCS"]
[]
[null,"Order Date",null,null,null,"Driver____________"]
[]
[]
[null,"Category","Container",null,"QTY","Unit Price","Amount "]